fUST/lending_fUST_20250202
["ID","MTS","AMOUNT","RATE_DAILY","PERIOD"]
[351229080,1738455054007,-3188.21,0.00017998,2]
[351229081,1738455054016,-3188.21,0.00017998,2]
[351229082,1738455054025,-3188.21,0.00017998,2]
[351229083,1738455054035,-3188.21,0.00017998,2]
[351229084,1738455054044,-500.0,0.00017998,2]
[351229085,1738455054053,-500.0,0.00017998,2]
[351229086,1738455054062,-500.0,0.00017998,2]
[351229087,1738455054071,-500.0,0.00017998,2]
[351229088,1738455054080,-500.0,0.00017998,2]
[351229089,1738455054090,-636.94299742,0.00017998,2]
[351229090,1738455054099,-500.0,0.00017999,2]
[351229091,1738455054111,-500.0,0.00017999,2]
[351229092,1738455054120,-3188.21,0.00017999,2]
[351229093,1738455054131,-3188.21,0.00017999,2]
[351229094,1738455054140,-3188.21,0.00017999,2]
[351229095,1738455054150,-3188.21,0.00017999,2]
[351229096,1738455054159,-3188.21,0.00017999,2]
[351229097,1738455054168,-3188.21,0.00017999,2]
[351229098,1738455054177,-3188.21,0.00017999,2]
[351229099,1738455054186,-3188.21,0.00017999,2]
[351229100,1738455054196,-3188.30913346,0.00017999,2]
[351229101,1738455054205,-569103.46384832,0.00018,15]
[351229102,1738455054308,-150173.67425763,0.00018,15]
[351229103,1738455054320,-6741.13307684,0.00018,15]
[351229104,1738455054331,-419.52770081,0.00018,15]
[351229105,1738455054341,-1084.41099492,0.00018,15]
[351229112,1738455211401,160.0,0.0002024,120]
[351229121,1738455483968,199.079528,0.00013973,2]
[351229123,1738455512464,160.0,0.00019814,120]
[351229138,1738455931851,160.0,0.00019191,120]
[351229142,1738455991846,160.0,0.00019407,120]
[351229144,1738456047260,-166.0,0.00015986,2]
[351229145,1738456047286,-300.0,0.00015994,2]
[351229146,1738456047308,-24900.0,0.00015995,2]
[351229147,1738456047328,-240.1422298,0.00016267,2]
[351229148,1738456047351,-500.0,0.00016438,2]
[351229149,1738456047372,-460.61245225,0.00016438,2]
[351229150,1738456047397,-500.0,0.00016438,2]
[351229151,1738456047417,-1192.285859,0.00016514,2]
[351229152,1738456047439,-500.0,0.00016575,2]
[351229153,1738456047463,-500.0,0.00016575,2]
[351229154,1738456047487,-500.0,0.00016712,2]
[351229155,1738456047511,-500.0,0.00016712,2]
[351229156,1738456047533,-314.1,0.00016849,2]
[351229157,1738456047556,-500.0,0.00016849,2]
[351229158,1738456047576,-500.0,0.00016887,2]
[351229159,1738456047599,-500.0,0.00016887,2]
[351229160,1738456047620,-500.0,0.00016887,2]
[351229161,1738456047641,-500.0,0.00016887,2]
[351229162,1738456047663,-500.0,0.00016887,2]
[351229163,1738456047684,-500.0,0.00016887,2]
[351229164,1738456047706,-608.41,0.00016887,2]
[351229165,1738456047728,-500.0,0.00016887,2]
[351229166,1738456047748,-500.0,0.00016887,2]
[351229167,1738456047769,-500.0,0.00016887,2]
[351229168,1738456047790,-500.0,0.00016887,2]
[351229169,1738456047812,-500.0,0.00016887,2]
[351229170,1738456047833,-500.0,0.00016887,2]
[351229171,1738456047853,-500.0,0.00016887,2]
[351229172,1738456047875,-500.0,0.00016887,2]
[351229173,1738456047897,-511.08,0.00016887,2]
[351229174,1738456047920,-500.0,0.00016887,2]
[351229175,1738456047942,-500.0,0.00016887,2]
[351229176,1738456047965,-500.0,0.00016887,2]
[351229177,1738456047985,-500.0,0.00016887,2]
[351229178,1738456048007,-500.0,0.00016887,2]
[351229179,1738456048030,-500.0,0.00016887,2]
[351229180,1738456048051,-500.0,0.00016887,2]
[351229181,1738456048072,-500.0,0.00016887,2]
[351229182,1738456048093,-500.0,0.00016887,2]
[351229183,1738456048112,-500.0,0.00016888,2]
[351229184,1738456048132,-473.05925283,0.00016888,2]
[351229185,1738456048154,-500.0,0.00016888,2]
[351229186,1738456048176,-500.0,0.00016986,2]
[351229187,1738456048199,-474.07,0.00017024,2]
[351229188,1738456048222,-500.0,0.00017024,2]
[351229189,1738456048244,-608.41,0.00017024,2]
[351229190,1738456048266,-499.6,0.00017024,2]
[351229191,1738456048289,-355.28982441,0.00017024,2]
[351229192,1738456048312,-500.0,0.00017024,2]
[351229193,1738456048335,-500.0,0.00017024,2]
[351229194,1738456048357,-500.0,0.00017024,2]
[351229195,1738456048515,-500.0,0.00017024,2]
[351229196,1738456048538,-500.0,0.00017024,2]
[351229197,1738456048562,-511.08,0.00017024,2]
[351229198,1738456048583,-617.07767842,0.00017024,2]
[351229199,1738456048605,-500.0,0.00017024,2]
[351229200,1738456048627,-500.0,0.00017024,2]
[351229201,1738456048649,-500.0,0.00017024,2]
[351229202,1738456048670,-500.0,0.00017024,2]
[351229203,1738456048691,-452.18803822,0.00017025,2]
[351229204,1738456048713,-225.88,0.00017025,2]
[351229205,1738456048735,-500.0,0.00017123,2]
[351229206,1738456048757,-500.0,0.00017161,2]
[351229207,1738456048779,-608.41,0.00017161,2]
[351229208,1738456048802,-500.0,0.00017161,2]
[351229209,1738456048826,-500.0,0.00017161,2]
[351229210,1738456048849,-500.0,0.00017161,2]
[351229211,1738456048869,-500.0,0.00017161,2]
[351229212,1738456048892,-500.0,0.00017161,2]
[351229213,1738456048915,-511.08,0.00017161,2]
[351229214,1738456048938,-500.0,0.00017161,2]
[351229215,1738456048962,-500.0,0.00017161,2]
[351229216,1738456048984,-500.0,0.00017161,2]
[351229217,1738456049005,-500.0,0.00017161,2]
[351229218,1738456049027,-500.0,0.0001726,2]
[351229219,1738456049048,-500.0,0.00017298,2]
[351229220,1738456049071,-608.41,0.00017298,2]
[351229221,1738456049094,-500.0,0.00017298,2]
[351229222,1738456049118,-174.9,0.00017298,2]
[351229223,1738456049141,-500.0,0.00017298,2]
[351229224,1738456049162,-500.0,0.00017298,2]
[351229225,1738456049187,-546.78,0.00017298,2]
[351229226,1738456049214,-511.08,0.00017298,2]
[351229227,1738456049236,-500.0,0.00017298,2]
[351229228,1738456049259,-500.0,0.00017298,2]
[351229229,1738456049282,-500.0,0.00017298,2]
[351229230,1738456049304,-500.0,0.00017298,2]
[351229231,1738456049326,-311.47,0.000173,2]
[351229232,1738456049350,-348.3,0.00017397,2]
[351229233,1738456049370,-170.52919937,0.00017428,2]
[351229234,1738456049392,-500.0,0.00017435,2]
[351229235,1738456049414,-608.41,0.00017435,2]
[351229236,1738456049436,-500.0,0.00017435,2]
[351229237,1738456049459,-500.0,0.00017435,2]
[351229238,1738456049493,-500.0,0.00017435,2]
[351229239,1738456049522,-511.08,0.00017435,2]
[351229240,1738456049546,-500.0,0.00017435,2]
[351229241,1738456049571,-500.0,0.00017435,2]
[351229242,1738456049596,-500.0,0.00017435,2]
[351229243,1738456049619,-420.0,0.00017487,2]
[351229244,1738456049641,-308.1395328,0.000175,2]
[351229245,1738456049663,-500.0,0.00017572,2]
[351229246,1738456049686,-608.41,0.00017572,2]
[351229247,1738456049711,-500.0,0.00017572,2]
[351229248,1738456049735,-500.0,0.00017572,2]
[351229249,1738456049758,-500.0,0.00017572,2]
[351229250,1738456049782,-511.08,0.00017572,2]
[351229251,1738456049816,-500.0,0.00017572,2]
[351229252,1738456049851,-500.0,0.00017572,2]
[351229253,1738456049883,-500.0,0.00017572,2]
[351229254,1738456049909,-521.98508738,0.00017582,2]
[351229255,1738456049937,-396.0,0.00017598,2]
[351229256,1738456049965,-183.892,0.00017698,2]
[351229257,1738456049995,-500.0,0.00017709,2]
[351229258,1738456050024,-608.41,0.00017709,2]
[351229259,1738456050053,-500.0,0.00017709,2]
[351229260,1738456050083,-500.0,0.00017709,2]
[351229261,1738456050108,-500.0,0.00017709,2]
[351229262,1738456050138,-511.08,0.00017709,2]
[351229263,1738456050167,-500.0,0.00017709,2]
[351229264,1738456050201,-500.0,0.00017709,2]
[351229265,1738456050230,-500.0,0.00017709,2]
[351229266,1738456050254,-521.98508738,0.00017741,2]
[351229267,1738456050279,-500.0,0.00017846,2]
[351229268,1738456050305,-608.41,0.00017846,2]
[351229269,1738456050334,-500.0,0.00017846,2]
[351229270,1738456050364,-426.40982514,0.00017846,2]
[351229272,1738456051130,-73.59017486,0.00017846,2]
[351229273,1738456051158,-157.0,0.00017846,2]
[351229274,1738456051183,-511.08,0.00017846,2]
[351229275,1738456051211,-500.0,0.00017846,2]
[351229276,1738456051237,-500.0,0.00017846,2]
[351229277,1738456051267,-500.0,0.00017846,2]
[351229278,1738456051294,-521.98508738,0.000179,2]
[351229279,1738456051316,-279.15891201,0.00017973,2]
[351229280,1738456051340,-500.25570474,0.00017973,2]
[351229281,1738456051368,-171.3650177,0.00017982,2]
[351229282,1738456051392,-480.58927066,0.00017983,2]
[351229283,1738456051416,-608.41,0.00017983,2]
[351229284,1738456051444,-500.0,0.00017983,2]
[351229285,1738456051472,-500.0,0.00017983,2]
[351229286,1738456051499,-511.08,0.00017983,2]
[351229287,1738456051524,-500.0,0.00017983,2]
[351229288,1738456051551,-500.0,0.00017983,2]
[351229289,1738456051577,-505.2,0.00017983,2]
[351229290,1738456051602,-547.14555307,0.00017999,2]
[351229291,1738456051626,-160.0,0.00018,5]
[351229292,1738456051650,-1044.2737603,0.00018,5]
[351229293,1738456051676,-6149.1086419,0.00018,5]
[351229294,1738456051703,-130958.66380043,0.00018,15]
[351229305,1738456150104,-441.98,0.00016887,2]
[351229306,1738456159102,-500.0,0.00016438,2]
[351229307,1738456159125,-500.0,0.00016575,2]
[351229308,1738456159149,-500.0,0.00016712,2]
[351229309,1738456159173,-27.771,0.00016849,2]
[351229310,1738456164114,-472.229,0.00016849,2]
[351229311,1738456164137,-17.771,0.00016887,2]
[351229312,1738456166098,-500.0,0.00016438,2]
[351229313,1738456166119,-500.0,0.00016575,2]
[351229314,1738456166140,-500.0,0.00016712,2]
[351229315,1738456166162,-418.44557744,0.00016849,2]
[351229383,1738456233477,-81.55442256,0.00016849,2]
[351229384,1738456233488,-40.249,0.00016887,2]
[351229385,1738456233498,-500.0,0.00016887,2]
[351229386,1738456233509,-500.0,0.00016887,2]
[351229387,1738456233520,-500.0,0.00016986,2]
[351229388,1738456233530,-192.6,0.00016986,2]
[351229389,1738456233540,-500.0,0.00017024,2]
[351229390,1738456233550,-500.0,0.00017024,2]
[351229391,1738456233560,-500.0,0.00017024,2]
[351229392,1738456233571,-500.0,0.00017123,2]
[351229393,1738456233580,-300.0,0.0001716,2]
[351229394,1738456233590,-500.0,0.00017161,2]
[351229395,1738456233600,-500.0,0.00017161,2]
[351229396,1738456233611,-500.0,0.0001726,2]
[351229397,1738456233621,-500.0,0.00017298,2]
[351229398,1738456233630,-500.0,0.00017298,2]
[351229399,1738456233640,-280.32,0.000173,2]
[351229400,1738456233650,-485.92,0.00017397,2]
[351229401,1738456233659,-500.0,0.00017435,2]
[351229402,1738456233669,-500.0,0.00017435,2]
[351229403,1738456233679,-500.0,0.00017572,2]
[351229404,1738456233690,-500.0,0.00017572,2]
[351229405,1738456233699,-224.41614044,0.00017598,2]
[351229406,1738456233712,-171.58385956,0.00017598,2]
[351229407,1738456233722,-1043.95493024,0.00017696,2]
[351229408,1738456233734,-156.04506976,0.00017696,2]
[351229409,1738456233743,-101.47993024,0.00017709,2]
[351229429,1738456238042,-398.52006976,0.00017709,2]
[351229431,1738456238052,-500.0,0.00017709,2]
[351229433,1738456238061,-500.0,0.00017846,2]
[351229435,1738456238071,-500.0,0.00017846,2]
[351229437,1738456238080,-500.0,0.00017983,2]
[351229439,1738456238089,-500.0,0.00017983,2]
[351229441,1738456238099,-3074.55432095,0.00018,5]
[351229443,1738456238110,-522.13688015,0.00018,5]
[351229445,1738456238119,-3422.52226809,0.00018,15]
[351229454,1738456238386,-14769.88521367,0.00018,15]
[351229455,1738456238398,-87913.88187821,0.00018,15]
[351229456,1738456238410,-1033.58533371,0.00018,15]
[351229457,1738456238421,-7786.55320457,0.00018,15]
[351229495,1738456240183,-5790.75297693,0.00018,15]
[351229562,1738456246192,-1514.2460184,0.00018,15]
[351229563,1738456246205,-314.32,0.00018,15]
[351229566,1738456351446,160.0,0.00019579,120]
[351229567,1738456368372,189.125551,0.00013973,2]
[351229573,1738456471423,160.0,0.00020001,120]
[351229574,1738456482259,-299.88147283,0.00020501,120]
[351229575,1738456482326,-160.0,0.00020606,120]
[351229576,1738456482352,-160.0,0.00020749,120]
[351229577,1738456482375,-160.0,0.00020771,120]
[351229578,1738456482398,-120.11852717,0.00020821,120]
[351229583,1738456651304,160.0,0.00020135,120]
[351229586,1738456700299,2587.0677363,0.00018,30]
[351229588,1738456711880,160.0,0.00020488,120]
[351229590,1738456771802,160.0,0.00019978,120]
[351229592,1738456831933,160.0,0.00019026,120]
[351229594,1738456891555,160.0,0.00018898,120]
[351229596,1738456951374,160.0,0.00020473,120]
[351229608,1738457345417,-276.6047141,0.00015959,2]
[351229609,1738457345438,-172.085123,0.00016044,2]
[351229610,1738457345459,-1196.07011626,0.00016398,2]
[351229611,1738457363149,-1176.0,0.00016398,2]
[351229612,1738457370097,-3425.13106909,0.00016398,2]
[351229614,1738457371091,-83.00922305,0.00016398,2]
[351229615,1738457371110,-268.372603,0.00016426,2]
[351229616,1738457371130,-138.61817395,0.00016736,2]
[351229617,1738457395650,187.708739,0.00013973,2]
[351229669,1738457432378,-153.08782605,0.00016736,2]
[351229671,1738457432387,-1000.0,0.00016999,7]
[351229673,1738457432397,-300.0,0.00016999,2]
[351229675,1738457432406,-13973.77420018,0.00017,2]
[351229678,1738457432433,-36332.18921905,0.00017,2]
[351229680,1738457432444,-6098.11475266,0.00017,2]
[351229682,1738457432453,-326.24067967,0.000172,2]
[351229683,1738457432463,-252.29,0.000173,2]
[351229685,1738457432472,-354.3389743,0.000173,2]
[351229686,1738457432481,-317.0346464,0.000173,2]
[351229688,1738457432491,-326.24067961,0.000173,2]
[351229689,1738457432500,-326.24067961,0.000174,2]
[351229691,1738457432509,-326.24067961,0.000175,2]
[351229693,1738457432519,-396.0,0.00017519,2]
[351229694,1738457432534,-500.0,0.0001767,2]
[351229703,1738457432671,-500.0,0.0001767,2]
[351229704,1738457432684,-500.0,0.0001767,2]
[351229706,1738457432693,-500.0,0.0001767,2]
[351229708,1738457432702,-500.0,0.0001767,2]
[351229709,1738457432712,-500.0,0.0001767,2]
[351229711,1738457432722,-500.0,0.0001767,2]
[351229712,1738457432731,-500.0,0.0001767,2]
[351229714,1738457432740,-1200.0,0.00017799,2]
[351229715,1738457432749,-500.0,0.00017807,2]
[351229717,1738457432759,-500.0,0.00017944,2]
[351229719,1738457432769,-500.0,0.00017999,2]
[351229720,1738457432778,-500.0,0.00017999,2]
[351229722,1738457432787,-500.0,0.00017999,2]
[351229724,1738457432796,-500.0,0.00017999,2]
[351229725,1738457432804,-500.0,0.00017999,2]
[351229727,1738457432814,-500.0,0.00017999,2]
[351229729,1738457432825,-500.0,0.00017999,2]
[351229730,1738457432834,-500.0,0.00017999,2]
[351229732,1738457432843,-500.0,0.00017999,2]
[351229734,1738457432852,-327.22204864,0.00017999,2]
[351229735,1738457432861,-500.0,0.00017999,2]
[351229737,1738457432872,-500.0,0.00017999,2]
[351229738,1738457432881,-561.07839825,0.00017999,2]
[351229740,1738457432890,-212.62523688,0.00017999,2]
[351229742,1738457432900,-500.0,0.00017999,2]
[351229743,1738457432909,-500.0,0.00017999,2]
[351229745,1738457432918,-183.89217528,0.00018,2]
[351229747,1738457432927,-1537.27716047,0.00018,5]
[351229748,1738457432936,-22050.91813248,0.00018,15]
[351229750,1738457432948,-463.04724669,0.00018,15]
[351229752,1738457432959,-360.41287851,0.00018,15]
[351229754,1738457432971,-2731.57530867,0.00018,15]
[351229794,1738457438327,-326.24067961,0.000176,2]
[351229795,1738457438338,-500.0,0.00017999,2]
[351229796,1738457438347,-261.06844007,0.00018,5]
[351229797,1738457438357,-904.76218813,0.00018,15]
[351229798,1738457438368,-301.84361991,0.00018,15]
[351229799,1738457438381,-19814.28274457,0.00018,15]
[351229800,1738457438434,-0.00291316,0.00018,15]
[351229801,1738457438446,-7703.86053751,0.00018,15]
[351229810,1738457443326,-500.0,0.0001767,2]
[351229811,1738457443337,-580.0,0.00018,15]
[351229812,1738457443349,-786.9,0.00018,15]
[351229815,1738457446625,-500.0,0.0001767,2]
[351229816,1738457446640,-326.24067961,0.000177,2]
[351229817,1738457446649,-655.66424651,0.00018,15]
[351229818,1738457446661,-1573.84857019,0.00018,15]
[351229827,1738457796715,966.218989,0.00015011,2]
[351229838,1738458289488,186.362767,0.00013973,2]
[351229839,1738458322056,500.0,0.00014964,2]
[351229844,1738458553112,-300.0,0.000161,2]
[351229845,1738458553132,-13663.193517,0.00016101,2]
[351229846,1738458561206,-3758.1178933,0.00016101,2]
[351229847,1738458562127,-7478.6885897,0.00016101,2]
[351229848,1738458562151,-5470.526571,0.000164,2]
[351229849,1738458562175,-500.0,0.00016438,2]
[351229850,1738458562200,-123.38226972,0.00016438,2]
[351229851,1738458569091,-376.61773028,0.00016438,2]
[351229852,1738458569113,-500.0,0.00016575,2]
[351229853,1738458569137,-500.0,0.00016712,2]
[351229854,1738458569159,-171.62824485,0.00016849,2]
[351229900,1738458632787,-500.0,0.00016438,2]
[351229901,1738458632798,-500.0,0.00016438,2]
[351229902,1738458632808,-500.0,0.00016438,2]
[351229903,1738458632818,-500.0,0.00016575,2]
[351229904,1738458632827,-500.0,0.00016575,2]
[351229905,1738458632837,-500.0,0.00016575,2]
[351229906,1738458632846,-500.0,0.00016712,2]
[351229907,1738458632856,-500.0,0.00016712,2]
[351229908,1738458632865,-328.37175515,0.00016849,2]
[351229909,1738458632875,-500.0,0.00016849,2]
[351229910,1738458632887,-500.0,0.00016849,2]
[351229911,1738458632896,-500.0,0.00016986,2]
[351229912,1738458632906,-500.0,0.00016986,2]
[351229913,1738458632915,-500.0,0.00016986,2]
[351229914,1738458632925,-300.0,0.00016996,2]
[351229915,1738458632934,-500.0,0.00016997,2]
[351229916,1738458632948,-500.0,0.00016997,2]
[351229917,1738458632958,-500.0,0.00016997,2]
[351229918,1738458632967,-500.0,0.00016997,2]
[351229919,1738458632977,-647.56,0.00016997,2]
[351229920,1738458632987,-500.0,0.00016997,2]
[351229921,1738458632997,-500.0,0.00016997,2]
[351229922,1738458633008,-500.0,0.00016997,2]
[351229923,1738458633018,-500.0,0.00016997,2]
[351229924,1738458633028,-500.0,0.00016997,2]
[351229925,1738458633038,-500.0,0.00016997,2]
[351229926,1738458633052,-500.0,0.00016997,2]
[351229927,1738458633063,-500.0,0.00016997,2]
[351229928,1738458633073,-500.0,0.00016997,2]
[351229929,1738458633083,-378.1721491,0.00016997,2]
[351229930,1738458633095,-500.0,0.00016997,2]
[351229931,1738458633105,-253.63164766,0.00016997,2]
[351229932,1738458633115,-500.0,0.00016997,2]
[351229933,1738458633126,-500.0,0.00016997,2]
[351229934,1738458633140,-500.0,0.00016997,2]
[351229935,1738458633150,-500.0,0.00016997,2]
[351229936,1738458633160,-500.0,0.00016997,2]
[351229937,1738458633171,-244.93585818,0.00016997,2]
[351229952,1738458638467,-1633.77414182,0.00016997,2]
[351229953,1738458638477,-500.0,0.00016997,2]
[351229954,1738458638487,-500.0,0.00016997,2]
[351229955,1738458638496,-500.0,0.00016997,2]
[351229956,1738458638506,-500.0,0.00016997,2]
[351229958,1738458638515,-500.0,0.00016997,2]
[351229959,1738458638525,-500.0,0.00016997,2]
[351229960,1738458638534,-500.0,0.00016997,2]
[351229961,1738458638544,-578.62,0.00016997,2]
[351229962,1738458638553,-1063.75,0.00016997,2]
[351229964,1738458638563,-500.0,0.00016997,2]
[351229965,1738458638572,-500.0,0.00016997,2]
[351229966,1738458638582,-500.0,0.00016997,2]
[351229967,1738458638591,-500.0,0.00016997,2]
[351229968,1738458638600,-500.0,0.00016997,2]
[351229969,1738458638612,-500.0,0.00016998,2]
[351229970,1738458638621,-500.0,0.00016998,2]
[351229971,1738458638630,-500.0,0.00016998,2]
[351229972,1738458638642,-500.0,0.00016998,2]
[351229973,1738458638651,-500.0,0.00016998,2]
[351229974,1738458638661,-500.0,0.00016998,2]
[351229975,1738458638670,-501.58699119,0.00016998,2]
[351229977,1738458638680,-500.0,0.00016998,2]
[351229979,1738458638689,-500.0,0.00016998,2]
[351229981,1738458638699,-508.54004725,0.00016998,2]
[351229983,1738458638709,-500.0,0.00016998,2]
[351229985,1738458638718,-352.66670369,0.00016998,2]
[351229987,1738458638727,-649.67893003,0.00016998,2]
[351229989,1738458638737,-500.0,0.00016998,2]
[351229990,1738458638746,-500.0,0.00016998,2]
[351229991,1738458638756,-500.0,0.00016998,2]
[351229992,1738458638765,-500.0,0.00016998,2]
[351229993,1738458638775,-500.0,0.00016998,2]
[351229994,1738458638784,-500.0,0.00016998,2]
[351229995,1738458638794,-500.0,0.00016998,2]
[351229996,1738458638804,-500.0,0.00016998,2]
[351229998,1738458638814,-500.0,0.00016998,2]
[351230000,1738458638823,-500.0,0.00016998,2]
[351230002,1738458638833,-500.0,0.00016998,2]
[351230003,1738458638842,-500.0,0.00016998,2]
[351230004,1738458638852,-500.0,0.00016998,2]
[351230005,1738458638861,-500.0,0.00016998,2]
[351230006,1738458638871,-500.0,0.00016998,2]
[351230007,1738458638881,-500.0,0.00016998,2]
[351230008,1738458638893,-500.0,0.00016998,2]
[351230009,1738458638902,-500.0,0.00016998,2]
[351230010,1738458638912,-500.0,0.00016998,2]
[351230011,1738458638921,-500.0,0.00016998,2]
[351230012,1738458638931,-500.0,0.00016998,2]
[351230013,1738458638940,-502.3754234,0.00016998,2]
[351230014,1738458638950,-550.35107339,0.00016998,2]
[351230015,1738458638960,-500.0,0.00016998,2]
[351230016,1738458638969,-495.47648648,0.00016998,2]
[351230017,1738458638979,-500.0,0.00016998,2]
[351230018,1738458638988,-500.0,0.00016998,2]
[351230019,1738458638998,-500.0,0.00016998,2]
[351230020,1738458639008,-500.0,0.00016998,2]
[351230021,1738458639018,-500.0,0.00016998,2]
[351230022,1738458639027,-514.06068051,0.00016998,2]
[351230023,1738458639037,-500.0,0.00016998,2]
[351230024,1738458639048,-500.0,0.00016998,2]
[351230025,1738458639058,-536.76456273,0.00016998,2]
[351230026,1738458639073,-500.0,0.00016998,2]
[351230027,1738458639082,-500.0,0.00016998,2]
[351230028,1738458639091,-500.0,0.00016998,2]
[351230029,1738458639101,-500.0,0.00016998,2]
[351230030,1738458639110,-500.0,0.00016998,2]
[351230031,1738458639121,-500.0,0.00016998,2]
[351230032,1738458639133,-500.0,0.00016998,2]
[351230033,1738458639143,-500.0,0.00016998,2]
[351230034,1738458639152,-500.0,0.00016998,2]
[351230035,1738458639162,-500.0,0.00016998,2]
[351230036,1738458639171,-500.0,0.00016998,2]
[351230037,1738458639181,-500.0,0.00016998,2]
[351230038,1738458639190,-500.0,0.00016998,2]
[351230039,1738458639200,-500.0,0.00016998,2]
[351230040,1738458639210,-500.0,0.00016998,2]
[351230041,1738458639220,-500.0,0.00016998,2]
[351230042,1738458639230,-500.0,0.00016998,2]
[351230043,1738458639240,-500.0,0.00016998,2]
[351230044,1738458639249,-500.0,0.00016998,2]
[351230045,1738458639258,-500.0,0.00016998,2]
[351230046,1738458639267,-500.0,0.00016998,2]
[351230047,1738458639277,-500.0,0.00016998,2]
[351230048,1738458639286,-500.0,0.00016998,2]
[351230049,1738458639295,-500.0,0.00016998,2]
[351230050,1738458639305,-500.0,0.00016998,2]
[351230051,1738458639314,-500.0,0.00016998,2]
[351230052,1738458639442,-500.0,0.00016998,2]
[351230053,1738458639451,-500.0,0.00016998,2]
[351230054,1738458639460,-500.0,0.00016998,2]
[351230055,1738458639469,-500.0,0.00016998,2]
[351230056,1738458639479,-500.0,0.00016998,2]
[351230057,1738458639489,-500.0,0.00016998,2]
[351230058,1738458639498,-500.0,0.00016998,2]
[351230059,1738458639507,-500.0,0.00016998,2]
[351230060,1738458639517,-500.0,0.00016998,2]
[351230061,1738458639527,-500.0,0.00016998,2]
[351230062,1738458639536,-500.0,0.00016998,2]
[351230063,1738458639546,-500.0,0.00016998,2]
[351230064,1738458639556,-500.0,0.00016998,2]
[351230065,1738458639566,-500.0,0.00016998,2]
[351230066,1738458639575,-500.0,0.00016998,2]
[351230067,1738458639585,-500.0,0.00016998,2]
[351230068,1738458639594,-500.0,0.00016998,2]
[351230069,1738458639604,-500.0,0.00016998,2]
[351230070,1738458639613,-500.0,0.00016998,2]
[351230071,1738458639622,-500.0,0.00016998,2]
[351230072,1738458639631,-500.0,0.00016998,2]
[351230073,1738458639642,-503.88895537,0.00016998,2]
[351230074,1738458639651,-557.73556449,0.00016998,2]
[351230075,1738458639660,-500.0,0.00016998,2]
[351230076,1738458639670,-500.0,0.00016998,2]
[351230077,1738458639680,-500.0,0.00016998,2]
[351230078,1738458639689,-520.04,0.00016998,2]
[351230079,1738458639699,-500.0,0.00016998,2]
[351230080,1738458639709,-500.0,0.00016998,2]
[351230081,1738458639719,-500.0,0.00016998,2]
[351230082,1738458639729,-410.06648433,0.00016998,2]
[351230083,1738458639739,-500.0,0.00016998,2]
[351230084,1738458639748,-500.0,0.00016998,2]
[351230085,1738458639758,-500.0,0.00016998,2]
[351230086,1738458639768,-548.45,0.00016998,2]
[351230087,1738458639778,-500.0,0.00016998,2]
[351230088,1738458639787,-500.0,0.00016998,2]
[351230089,1738458639797,-500.0,0.00016998,2]
[351230090,1738458639807,-500.0,0.00016998,2]